[Event "*** Biggest EVER Titled Tuesday"]
[Site "Chess.com"]
[Date "2018.04.17"]
[Round "6"]
[White "Orest_Vovk"]
[Black "patzerplay"]
[Result "0-1"]
[WhiteElo "2241"]
[BlackElo "2310"]
[TimeControl "180+2"]
[EndTime "14:24:50 PDT"]
[Termination "patzerplay won by resignation"]

1. g4 {[%clk 0:02:59.1]} 1... d6 {[%clk 0:02:58.5]} 2. h3 {[%clk 0:02:59.9]}
2... c6 {[%clk 0:02:59.8]} 3. Bg2 {[%clk 0:03:01.3]} 3... Qc7 {[%clk 0:03:00.8]}
4. c4 {[%clk 0:03:02.1]} 4... e5 {[%clk 0:03:01.7]} 5. Nc3 {[%clk 0:03:03.2]}
5... h5 {[%clk 0:02:59.2]} 6. g5 {[%clk 0:03:03.7]} 6... Ne7 {[%clk 0:03:00]} 7.
d3 {[%clk 0:03:04.4]} 7... Ng6 {[%clk 0:02:55.1]} 8. Nf3 {[%clk 0:03:05.2]} 8...
Na6 {[%clk 0:02:47.8]} 9. a3 {[%clk 0:03:03.4]} 9... Nc5 {[%clk 0:02:48.5]} 10.
b4 {[%clk 0:03:03.6]} 10... Ne6 {[%clk 0:02:49.2]} 11. e3 {[%clk 0:03:00.1]}
11... Be7 {[%clk 0:02:50.4]} 12. h4 {[%clk 0:03:00.6]} 12... a5 {[%clk
0:02:47.7]} 13. Bb2 {[%clk 0:03:01.1]} 13... O-O {[%clk 0:02:35.3]} 14. Nd2
{[%clk 0:03:00.8]} 14... axb4 {[%clk 0:02:27.4]} 15. axb4 {[%clk 0:03:00.4]}
15... Rxa1 {[%clk 0:02:28.5]} 16. Bxa1 {[%clk 0:03:02.2]} 16... Qb6 {[%clk
0:02:30]} 17. Qxh5 {[%clk 0:02:22.6]} 17... Qxb4 {[%clk 0:02:29.4]} 18. Qd1
{[%clk 0:02:19.1]} 18... Nc5 {[%clk 0:02:19.9]} 19. Ke2 {[%clk 0:02:14.7]} 19...
Bf5 {[%clk 0:02:10.1]} 20. Nce4 {[%clk 0:02:06]} 20... Qa3 {[%clk 0:01:28]} 21.
Nxc5 {[%clk 0:01:48.4]} 21... dxc5 {[%clk 0:01:28.7]} 22. Be4 {[%clk 0:01:48.2]}
22... Bxe4 {[%clk 0:01:20.2]} 23. Nxe4 {[%clk 0:01:48.4]} 23... Ra8 {[%clk
0:01:15.5]} 24. Bc3 {[%clk 0:01:29.7]} 24... Qa2+ {[%clk 0:01:07.9]} 25. Bd2
{[%clk 0:01:17.4]} 25... b5 {[%clk 0:01:03.5]} 26. h5 {[%clk 0:01:11.6]} 26...
Nf8 {[%clk 0:01:01]} 27. Qb1 {[%clk 0:01:07]} 27... b4 {[%clk 0:00:45.3]} 28. h6
{[%clk 0:00:47.8]} 28... Qxb1 {[%clk 0:00:38.9]} 29. Rxb1 {[%clk 0:00:47.7]}
29... Ra2 {[%clk 0:00:37.8]} 30. hxg7 {[%clk 0:00:39.9]} 30... Kxg7 {[%clk
0:00:38.8]} 31. f4 {[%clk 0:00:41.3]} 31... Ne6 {[%clk 0:00:33.8]} 32. fxe5
{[%clk 0:00:35.8]} 32... Nxg5 {[%clk 0:00:29.6]} 33. Rg1 {[%clk 0:00:23.6]}
33... Kh6 {[%clk 0:00:30.9]} 34. Nf2 {[%clk 0:00:19.1]} 34... Rxd2+ {[%clk
0:00:30.5]} 35. Kxd2 {[%clk 0:00:19.8]} 35... Nf3+ {[%clk 0:00:32.1]} 36. Kc2
{[%clk 0:00:21.1]} 36... Nxg1 {[%clk 0:00:33.5]} 37. d4 {[%clk 0:00:21.2]} 37...
Kg6 {[%clk 0:00:30.6]} 38. d5 {[%clk 0:00:15.8]} 38... cxd5 {[%clk 0:00:24.5]}
39. cxd5 {[%clk 0:00:17.7]} 39... Kf5 {[%clk 0:00:26]} 40. d6 {[%clk 0:00:18.9]}
40... Bd8 {[%clk 0:00:26.6]} 41. Nd3 {[%clk 0:00:19.7]} 41... Nf3 {[%clk
0:00:16]} 42. Nxc5 {[%clk 0:00:17.5]} 42... Nxe5 {[%clk 0:00:17.3]} 43. Kb3
{[%clk 0:00:18.1]} 43... Nc6 {[%clk 0:00:17.8]} 44. Kc4 {[%clk 0:00:16.1]} 44...
Ke5 {[%clk 0:00:17.4]} 45. d7 {[%clk 0:00:17.4]} 45... Kd6 {[%clk 0:00:18.7]}
46. e4 {[%clk 0:00:16.6]} 46... Kc7 {[%clk 0:00:19.8]} 47. Kd5 {[%clk
0:00:13.6]} 47... Be7 {[%clk 0:00:20.1]} 48. Nb3 {[%clk 0:00:13.9]} 48... Kxd7
{[%clk 0:00:21.3]} 49. e5 {[%clk 0:00:15.4]} 49... Nd8 {[%clk 0:00:22.1]} 50.
Nd4 {[%clk 0:00:14.5]} 50... Ne6 {[%clk 0:00:23.2]} 51. Nb3 {[%clk 0:00:15.8]}
51... Nf4+ {[%clk 0:00:24.4]} 52. Ke4 {[%clk 0:00:16.2]} 52... Ne6 {[%clk
0:00:25.4]} 53. Kd5 {[%clk 0:00:17.6]} 53... Nc7+ {[%clk 0:00:26.8]} 54. Ke4
{[%clk 0:00:17.1]} 54... Nb5 {[%clk 0:00:27.6]} 55. Kf5 {[%clk 0:00:14]} 55...
Nc3 {[%clk 0:00:27.1]} 56. Nd4 {[%clk 0:00:13]} 56... Nd5 {[%clk 0:00:28.2]} 57.
Ke4 {[%clk 0:00:11.9]} 57... Nc7 {[%clk 0:00:27.9]} 58. Kf5 {[%clk 0:00:09.7]}
58... Ne6 {[%clk 0:00:29.2]} 59. Nb3 {[%clk 0:00:10.3]} 59... Kc6 {[%clk
0:00:30.3]} 60. Nd2 {[%clk 0:00:07.8]} 60... Kd5 {[%clk 0:00:31.1]} 61. Ne4
{[%clk 0:00:07.2]} 61... Nd4+ {[%clk 0:00:32]} 62. Kf4 {[%clk 0:00:07.9]} 62...
Ne6+ {[%clk 0:00:33.2]} 63. Kf5 {[%clk 0:00:09]} 63... Nc5 {[%clk 0:00:33.9]}
64. Nd2 {[%clk 0:00:08.4]} 64... Nd7 {[%clk 0:00:35]} 65. Nf1 {[%clk 0:00:06]}
65... Nxe5 {[%clk 0:00:35.6]} 66. Ne3+ {[%clk 0:00:07.2]} 66... Kd4 {[%clk
0:00:37]} 67. Nc2+ {[%clk 0:00:07.9]} 67... Kc3 {[%clk 0:00:37.3]} 68. Nxb4
{[%clk 0:00:07.8]} 68... Bxb4 {[%clk 0:00:37.7]} 69. Kxe5 {[%clk 0:00:09.3]}
69... Be7 {[%clk 0:00:39.1]} 0-1

[Event "*** Biggest EVER Titled Tuesday"]
[Site "Chess.com"]
[Date "2018.04.17"]
[Round "6"]
[White "OparinGrigoriy"]
[Black "Alexander_Moskalenko"]
[Result "1-0"]
[WhiteElo "2869"]
[BlackElo "2724"]
[TimeControl "180+2"]
[EndTime "14:24:54 PDT"]
[Termination "OparinGrigoriy won by resignation"]

1. e4 {[%clk 0:03:01.9]} 1... e6 {[%clk 0:03:00.4]} 2. d4 {[%clk 0:03:02.7]}
2... d5 {[%clk 0:03:02.3]} 3. Nc3 {[%clk 0:03:04.5]} 3... Nf6 {[%clk 0:03:03]}
4. Bg5 {[%clk 0:03:04.3]} 4... h6 {[%clk 0:03:01.4]} 5. Bxf6 {[%clk 0:03:00.5]}
5... Qxf6 {[%clk 0:03:03.3]} 6. exd5 {[%clk 0:02:59.5]} 6... Bb4 {[%clk
0:03:04.8]} 7. dxe6 {[%clk 0:02:49.4]} 7... O-O {[%clk 0:03:00.3]} 8. Bd3 {[%clk
0:02:44.4]} 8... Bxe6 {[%clk 0:02:59.2]} 9. Ne2 {[%clk 0:02:45.6]} 9... c5
{[%clk 0:02:46.2]} 10. O-O {[%clk 0:02:33.1]} 10... cxd4 {[%clk 0:02:43.5]} 11.
Nxd4 {[%clk 0:02:35]} 11... Bxc3 {[%clk 0:02:38.1]} 12. bxc3 {[%clk 0:02:36.9]}
12... Nd7 {[%clk 0:02:39.6]} 13. Re1 {[%clk 0:02:23.2]} 13... Nc5 {[%clk
0:02:37]} 14. a4 {[%clk 0:02:18.7]} 14... Rac8 {[%clk 0:02:37.2]} 15. Re3 {[%clk
0:02:12]} 15... Rfd8 {[%clk 0:02:33.7]} 16. a5 {[%clk 0:02:11.4]} 16... Nxd3
{[%clk 0:02:22.3]} 17. Rxd3 {[%clk 0:02:10]} 17... Bc4 {[%clk 0:02:16.6]} 18.
Rf3 {[%clk 0:02:10.3]} 18... Qg6 {[%clk 0:02:17.7]} 19. Rg3 {[%clk 0:02:10.7]}
19... Qf6 {[%clk 0:02:15.2]} 20. h3 {[%clk 0:02:11.1]} 20... Re8 {[%clk
0:02:11.7]} 21. Qg4 {[%clk 0:02:07.7]} 21... Rc5 {[%clk 0:02:12]} 22. Rf3 {[%clk
0:01:55.7]} 22... Qg6 {[%clk 0:02:05.4]} 23. Qd7 {[%clk 0:01:22.4]} 23... Rce5
{[%clk 0:02:04.1]} 24. Rg3 {[%clk 0:01:06.6]} 24... Qf6 {[%clk 0:02:03.8]} 25.
Nf3 {[%clk 0:01:00.7]} 25... R5e7 {[%clk 0:01:59.4]} 26. Qd4 {[%clk 0:01:02.2]}
26... Qxd4 {[%clk 0:01:47.1]} 27. cxd4 {[%clk 0:01:04.1]} 27... f6 {[%clk
0:01:41.3]} 28. Nd2 {[%clk 0:01:00]} 28... Ba6 {[%clk 0:01:42]} 29. Nb3 {[%clk
0:00:29.5]} 29... Bc4 {[%clk 0:01:16.9]} 30. Rc3 {[%clk 0:00:27.7]} 30... Bd5
{[%clk 0:01:18]} 31. Rc5 {[%clk 0:00:26.4]} 31... Bf7 {[%clk 0:00:54.1]} 32. d5
{[%clk 0:00:20.5]} 32... Rd7 {[%clk 0:00:55.1]} 33. c4 {[%clk 0:00:21.2]} 33...
Re4 {[%clk 0:00:52.6]} 34. Rc1 {[%clk 0:00:21.3]} 34... Kh7 {[%clk 0:00:52.6]}
35. Nd2 {[%clk 0:00:21.8]} 35... Re2 {[%clk 0:00:46.5]} 36. Nf1 {[%clk
0:00:23.2]} 36... Rb2 {[%clk 0:00:44.7]} 37. Ne3 {[%clk 0:00:24.4]} 37... b6
{[%clk 0:00:46.2]} 38. axb6 {[%clk 0:00:24.9]} 38... axb6 {[%clk 0:00:48.1]} 39.
Rc8 {[%clk 0:00:25.1]} 39... Rb4 {[%clk 0:00:33.6]} 40. Ra1 {[%clk 0:00:22.3]}
40... b5 {[%clk 0:00:32]} 41. c5 {[%clk 0:00:20.2]} 41... Bxd5 {[%clk
0:00:29.6]} 42. c6 {[%clk 0:00:21.6]} 42... Bxc6 {[%clk 0:00:31.1]} 43. Rxc6
{[%clk 0:00:22.2]} 43... Rb7 {[%clk 0:00:33]} 44. Raa6 {[%clk 0:00:22.1]} 44...
Rd4 {[%clk 0:00:32]} 45. Rab6 {[%clk 0:00:21.9]} 45... Rdd7 {[%clk 0:00:33.5]}
46. g4 {[%clk 0:00:21.2]} 46... b4 {[%clk 0:00:34.2]} 47. Nc4 {[%clk 0:00:21.2]}
47... b3 {[%clk 0:00:35.3]} 48. Na5 {[%clk 0:00:22.7]} 48... Ra7 {[%clk
0:00:34.3]} 49. Nxb3 {[%clk 0:00:23.5]} 49... Rd3 {[%clk 0:00:36]} 50. Kg2
{[%clk 0:00:24.1]} 50... Ra3 {[%clk 0:00:37]} 51. Nc5 {[%clk 0:00:23.7]} 51...
Rxh3 {[%clk 0:00:37.9]} 52. Rc7 {[%clk 0:00:20.9]} 52... Rh4 {[%clk 0:00:35.8]}
53. f3 {[%clk 0:00:22]} 53... h5 {[%clk 0:00:15.3]} 54. Rbb7 {[%clk 0:00:22.2]}
54... Kh6 {[%clk 0:00:10.7]} 55. Rxg7 {[%clk 0:00:22.5]} 55... hxg4 {[%clk
0:00:07.5]} 56. Rh7+ {[%clk 0:00:23.6]} 56... Kg5 {[%clk 0:00:09]} 57. Rbg7+
{[%clk 0:00:25.1]} 57... Kf4 {[%clk 0:00:10.5]} 58. Rxh4 {[%clk 0:00:25.6]}
58... Ra2+ {[%clk 0:00:12.4]} 59. Kg1 {[%clk 0:00:23.6]} 59... f5 {[%clk
0:00:13.1]} 60. fxg4 {[%clk 0:00:19.1]} 60... Kg3 {[%clk 0:00:14.2]} 61. gxf5+
{[%clk 0:00:20.2]} 61... Kxh4 {[%clk 0:00:15]} 62. f6 {[%clk 0:00:21.7]} 62...
Ra8 {[%clk 0:00:13.4]} 63. f7 {[%clk 0:00:22.8]} 63... Ra7 {[%clk 0:00:10.6]}
64. Ne6 {[%clk 0:00:22.9]} 1-0

[Event "*** Biggest EVER Titled Tuesday"]
[Site "Chess.com"]
[Date "2018.04.17"]
[Round "6"]
[White "VeraNebolsina"]
[Black "Princec7"]
[Result "1-0"]
[WhiteElo "2480"]
[BlackElo "2387"]
[TimeControl "180+2"]
[EndTime "14:24:56 PDT"]
[Termination "VeraNebolsina won by resignation"]

1. e4 {[%clk 0:03:01.9]} 1... c5 {[%clk 0:03:00.7]} 2. c3 {[%clk 0:03:00.1]}
2... Nf6 {[%clk 0:03:00.5]} 3. e5 {[%clk 0:03:00.9]} 3... Nd5 {[%clk 0:03:01]}
4. Nf3 {[%clk 0:03:01.7]} 4... e6 {[%clk 0:03:01.3]} 5. g3 {[%clk 0:03:02]} 5...
Nc6 {[%clk 0:02:53.9]} 6. Bg2 {[%clk 0:03:01.6]} 6... d6 {[%clk 0:02:54.9]} 7.
exd6 {[%clk 0:03:01.6]} 7... Bxd6 {[%clk 0:02:55.1]} 8. O-O {[%clk 0:03:02.2]}
8... O-O {[%clk 0:02:55.8]} 9. d4 {[%clk 0:03:02.6]} 9... cxd4 {[%clk
0:02:55.6]} 10. Nxd4 {[%clk 0:03:02.9]} 10... Be7 {[%clk 0:02:49.6]} 11. Nxc6
{[%clk 0:02:24.3]} 11... bxc6 {[%clk 0:02:51.5]} 12. c4 {[%clk 0:02:25.1]} 12...
Nb4 {[%clk 0:02:15.7]} 13. Bd2 {[%clk 0:01:55.3]} 13... Rb8 {[%clk 0:02:03.5]}
14. Nc3 {[%clk 0:01:32.1]} 14... Bb7 {[%clk 0:01:56.3]} 15. Bf4 {[%clk
0:01:13.5]} 15... Rc8 {[%clk 0:01:51.1]} 16. Be3 {[%clk 0:01:12.7]} 16... Nd3
{[%clk 0:01:44.3]} 17. Be4 {[%clk 0:00:54.8]} 17... Nb4 {[%clk 0:01:24]} 18. a3
{[%clk 0:00:43.5]} 18... Na6 {[%clk 0:01:23.7]} 19. b4 {[%clk 0:00:43.1]} 19...
f5 {[%clk 0:01:21.8]} 20. Bg2 {[%clk 0:00:42.3]} 20... Bf6 {[%clk 0:01:21]} 21.
Rc1 {[%clk 0:00:40.2]} 21... Qe7 {[%clk 0:01:19.4]} 22. c5 {[%clk 0:00:22.1]}
22... Nc7 {[%clk 0:01:15]} 23. Qe2 {[%clk 0:00:22.7]} 23... Nd5 {[%clk
0:01:14.8]} 24. Bd2 {[%clk 0:00:21.1]} 24... e5 {[%clk 0:01:11.2]} 25. Nxd5
{[%clk 0:00:19.9]} 25... cxd5 {[%clk 0:01:11.9]} 26. c6 {[%clk 0:00:21]} 26...
Bxc6 {[%clk 0:01:10]} 27. Rxc6 {[%clk 0:00:21.6]} 27... Rxc6 {[%clk 0:01:10.4]}
28. Bxd5+ {[%clk 0:00:23.1]} 28... Re6 {[%clk 0:01:11.2]} 29. Qc4 {[%clk
0:00:24.4]} 29... Re8 {[%clk 0:01:10.3]} 30. Be3 {[%clk 0:00:25.5]} 30... Kh8
{[%clk 0:01:08]} 31. Bxe6 {[%clk 0:00:26.3]} 31... Qxe6 {[%clk 0:01:08.8]} 32.
Qxe6 {[%clk 0:00:27.8]} 32... Rxe6 {[%clk 0:01:10.4]} 33. Bxa7 {[%clk
0:00:28.8]} 33... Ra6 {[%clk 0:01:09.1]} 34. Bc5 {[%clk 0:00:26.6]} 34... Rxa3
{[%clk 0:01:09.2]} 35. b5 {[%clk 0:00:27.4]} 35... Rb3 {[%clk 0:01:07.5]} 36. b6
{[%clk 0:00:28.5]} 36... Rb5 {[%clk 0:01:07.8]} 37. Ra1 {[%clk 0:00:25.7]} 37...
h5 {[%clk 0:01:02.4]} 38. Ra8+ {[%clk 0:00:22.2]} 38... Kh7 {[%clk 0:01:02.5]}
39. Rc8 {[%clk 0:00:22.9]} 39... h4 {[%clk 0:00:57.3]} 40. Kg2 {[%clk
0:00:22.3]} 40... Rb3 {[%clk 0:00:36]} 41. Rc7 {[%clk 0:00:16.7]} 41... Kg6
{[%clk 0:00:35.8]} 42. b7 {[%clk 0:00:15.9]} 42... e4 {[%clk 0:00:25.9]} 43. Ba7
{[%clk 0:00:14.6]} 43... Be5 {[%clk 0:00:24.8]} 44. b8=Q {[%clk 0:00:14.5]}
44... Rxb8 {[%clk 0:00:24.5]} 45. Bxb8 {[%clk 0:00:15.5]} 45... Bxc7 {[%clk
0:00:25.8]} 46. Bxc7 {[%clk 0:00:16.6]} 46... hxg3 {[%clk 0:00:26.7]} 47. Kxg3
{[%clk 0:00:15.2]} 47... Kf6 {[%clk 0:00:25.6]} 48. Bd8+ {[%clk 0:00:13.6]}
48... Ke5 {[%clk 0:00:21.8]} 49. Bg5 {[%clk 0:00:14.5]} 49... g6 {[%clk
0:00:22.2]} 50. h3 {[%clk 0:00:14.4]} 50... Kd5 {[%clk 0:00:22.9]} 51. Kf4
{[%clk 0:00:15.5]} 51... Ke6 {[%clk 0:00:23.9]} 52. Bh6 {[%clk 0:00:15.9]} 52...
Ke7 {[%clk 0:00:23.6]} 53. Kg5 {[%clk 0:00:16.4]} 53... Kf7 {[%clk 0:00:24.6]}
54. Kf4 {[%clk 0:00:17.6]} 54... Kf6 {[%clk 0:00:25.3]} 55. Bg5+ {[%clk
0:00:18.6]} 55... Ke6 {[%clk 0:00:26.2]} 56. Bd8 {[%clk 0:00:19]} 56... Kf7
{[%clk 0:00:26.8]} 57. Kg5 {[%clk 0:00:19.7]} 57... Kg7 {[%clk 0:00:28.4]} 58.
Bf6+ {[%clk 0:00:20.6]} 58... Kf7 {[%clk 0:00:29.7]} 59. Bd4 {[%clk 0:00:21.4]}
59... Ke6 {[%clk 0:00:30.5]} 60. Kxg6 {[%clk 0:00:21.6]} 60... f4 {[%clk
0:00:32.1]} 61. h4 {[%clk 0:00:22.3]} 61... Kd5 {[%clk 0:00:32.2]} 62. Ba7
{[%clk 0:00:22.9]} 62... Kc4 {[%clk 0:00:33.3]} 63. Kg5 {[%clk 0:00:23.4]} 63...
e3 {[%clk 0:00:32.6]} 64. fxe3 {[%clk 0:00:23.7]} 64... f3 {[%clk 0:00:33.7]}
65. e4 {[%clk 0:00:24.9]} 65... Kb5 {[%clk 0:00:34.6]} 66. h5 {[%clk 0:00:25.5]}
66... Ka6 {[%clk 0:00:36.2]} 67. Bf2 {[%clk 0:00:26.6]} 1-0

[Event "*** Biggest EVER Titled Tuesday"]
[Site "Chess.com"]
[Date "2018.04.17"]
[Round "6"]
[White "Raffael89"]
[Black "nailbeshirli"]
[Result "0-1"]
[WhiteElo "2136"]
[BlackElo "2315"]
[TimeControl "180+2"]
[EndTime "14:25:00 PDT"]
[Termination "nailbeshirli won by resignation"]

1. e4 {[%clk 0:03:01.9]} 1... c5 {[%clk 0:02:48.2]} 2. Nc3 {[%clk 0:02:56.2]}
2... d6 {[%clk 0:02:48.4]} 3. f4 {[%clk 0:02:55.5]} 3... Nc6 {[%clk 0:02:48.2]}
4. Nf3 {[%clk 0:02:56.7]} 4... g6 {[%clk 0:02:47.6]} 5. Bb5 {[%clk 0:02:57.6]}
5... Bd7 {[%clk 0:02:45.7]} 6. Bxc6 {[%clk 0:02:57.4]} 6... Bxc6 {[%clk
0:02:46.3]} 7. d3 {[%clk 0:02:57.7]} 7... Bg7 {[%clk 0:02:47.7]} 8. O-O {[%clk
0:02:58.1]} 8... Nf6 {[%clk 0:02:48.3]} 9. Qe1 {[%clk 0:02:59]} 9... Qd7 {[%clk
0:02:48.8]} 10. a4 {[%clk 0:02:57.3]} 10... h6 {[%clk 0:02:41.2]} 11. Bd2 {[%clk
0:02:50.7]} 11... a6 {[%clk 0:02:31.4]} 12. a5 {[%clk 0:02:45.8]} 12... O-O
{[%clk 0:02:18.9]} 13. f5 {[%clk 0:02:31]} 13... g5 {[%clk 0:02:16.8]} 14. Qg3
{[%clk 0:02:20.6]} 14... Nh5 {[%clk 0:02:07.7]} 15. Qg4 {[%clk 0:02:08.3]} 15...
Nf6 {[%clk 0:02:07.6]} 16. Qg3 {[%clk 0:02:09]} 16... Nh7 {[%clk 0:02:07]} 17.
h4 {[%clk 0:02:04.3]} 17... f6 {[%clk 0:02:07.6]} 18. Rae1 {[%clk 0:01:59.9]}
18... Rf7 {[%clk 0:02:02.9]} 19. Nh2 {[%clk 0:01:42.2]} 19... Re8 {[%clk
0:01:57.2]} 20. Nd5 {[%clk 0:01:29.6]} 20... e6 {[%clk 0:01:50.2]} 21. fxe6
{[%clk 0:01:29.9]} 21... Qxe6 {[%clk 0:01:47.7]} 22. Ne3 {[%clk 0:01:23.4]}
22... Qe5 {[%clk 0:01:45.2]} 23. Qxe5 {[%clk 0:01:13]} 23... Rxe5 {[%clk
0:01:42.6]} 24. Nhg4 {[%clk 0:01:11.7]} 24... Re6 {[%clk 0:01:09.6]} 25. Nf5
{[%clk 0:00:49.1]} 25... Rf8 {[%clk 0:01:10]} 26. Bc3 {[%clk 0:00:39.8]} 26...
Bd7 {[%clk 0:00:59.2]} 27. Ngxh6+ {[%clk 0:00:38.2]} 27... Kh8 {[%clk
0:00:58.9]} 28. hxg5 {[%clk 0:00:29.1]} 28... Nxg5 {[%clk 0:00:59.3]} 29. Ng4
{[%clk 0:00:24.7]} 29... d5 {[%clk 0:00:31.2]} 30. Bd2 {[%clk 0:00:12.4]} 30...
dxe4 {[%clk 0:00:28]} 31. Bxg5 {[%clk 0:00:12.2]} 31... fxg5 {[%clk 0:00:29]}
32. dxe4 {[%clk 0:00:11.8]} 32... Bxb2 {[%clk 0:00:29.9]} 33. Kf2 {[%clk
0:00:08.8]} 33... Kg8 {[%clk 0:00:19.1]} 34. Kg3 {[%clk 0:00:05.8]} 34... Bc6
{[%clk 0:00:13.7]} 35. e5 {[%clk 0:00:04.6]} 35... Rd8 {[%clk 0:00:11.8]} 36.
Nf6+ {[%clk 0:00:05.6]} 36... Kf7 {[%clk 0:00:10.8]} 37. Rh1 {[%clk 0:00:06.2]}
37... Bxe5+ {[%clk 0:00:11.4]} 38. Kg4 {[%clk 0:00:04.6]} 38... Rxf6 {[%clk
0:00:04.7]} 39. Rxe5 {[%clk 0:00:02.9]} 39... Rd4+ {[%clk 0:00:04.8]} 40. Kxg5
{[%clk 0:00:04]} 40... Rg6+ {[%clk 0:00:05]} 41. Kh5 {[%clk 0:00:04.5]} 41...
Rxg2 {[%clk 0:00:04.7]} 42. Nh6+ {[%clk 0:00:03.4]} 42... Kf6 {[%clk 0:00:04.9]}
43. Rf5+ {[%clk 0:00:04]} 43... Ke6 {[%clk 0:00:05.9]} 44. Re1+ {[%clk
0:00:05.5]} 44... Kd6 {[%clk 0:00:07.3]} 45. Rf6+ {[%clk 0:00:06.3]} 45... Kd5
{[%clk 0:00:08.7]} 46. Rf5+ {[%clk 0:00:07.4]} 46... Kc4 {[%clk 0:00:10.1]} 47.
Rg5 {[%clk 0:00:04.8]} 47... Bf3+ {[%clk 0:00:10.6]} 48. Kg6 {[%clk 0:00:05.4]}
48... Rd6+ {[%clk 0:00:12.2]} 49. Kf5 {[%clk 0:00:05.9]} 49... Rxg5+ {[%clk
0:00:14.1]} 50. Kxg5 {[%clk 0:00:06.6]} 50... Bc6 {[%clk 0:00:14.9]} 51. Re2
{[%clk 0:00:06.6]} 51... Kc3 {[%clk 0:00:15.3]} 52. Nf5 {[%clk 0:00:07.7]} 52...
Rd2 {[%clk 0:00:16.4]} 53. Re5 {[%clk 0:00:06.9]} 53... c4 {[%clk 0:00:16.6]}
54. Rc5 {[%clk 0:00:05.1]} 54... Rxc2 {[%clk 0:00:17]} 55. Nd6 {[%clk 0:00:05]}
55... Kb4 {[%clk 0:00:16.9]} 56. Re5 {[%clk 0:00:04.2]} 56... c3 {[%clk
0:00:18.1]} 57. Nf5 {[%clk 0:00:03]} 57... Rg2+ {[%clk 0:00:19.4]} 58. Kf6
{[%clk 0:00:03.9]} 58... c2 {[%clk 0:00:21.3]} 59. Nd4 {[%clk 0:00:04.5]} 59...
c1=Q {[%clk 0:00:21.3]} 60. Nxc6+ {[%clk 0:00:05.5]} 60... Qxc6+ {[%clk
0:00:21.8]} 61. Re6 {[%clk 0:00:05.8]} 61... Rf2+ {[%clk 0:00:23.1]} 62. Ke7
{[%clk 0:00:06.8]} 62... Qc7+ {[%clk 0:00:23.2]} 0-1

[Event "*** Biggest EVER Titled Tuesday"]
[Site "Chess.com"]
[Date "2018.04.17"]
[Round "6"]
[White "Fighterman91"]
[Black "KNVB"]
[Result "0-1"]
[WhiteElo "2586"]
[BlackElo "2594"]
[TimeControl "180+2"]
[EndTime "14:25:12 PDT"]
[Termination "KNVB won by resignation"]

1. e4 {[%clk 0:03:01.9]} 1... b6 {[%clk 0:02:55.7]} 2. d4 {[%clk 0:03:02.8]}
2... Bb7 {[%clk 0:02:56.9]} 3. Nc3 {[%clk 0:02:52.1]} 3... e6 {[%clk 0:02:58.1]}
4. a3 {[%clk 0:02:51.6]} 4... g6 {[%clk 0:02:44.8]} 5. h4 {[%clk 0:02:51.3]}
5... h6 {[%clk 0:02:41.9]} 6. Be3 {[%clk 0:02:50.1]} 6... Bg7 {[%clk 0:02:42.6]}
7. Qd2 {[%clk 0:02:51.5]} 7... Nf6 {[%clk 0:02:32.6]} 8. f3 {[%clk 0:02:52.9]}
8... d5 {[%clk 0:02:33.6]} 9. e5 {[%clk 0:02:52.2]} 9... Ng8 {[%clk 0:02:34.8]}
10. h5 {[%clk 0:02:49.2]} 10... g5 {[%clk 0:02:34.8]} 11. f4 {[%clk 0:02:32.1]}
11... gxf4 {[%clk 0:02:11.8]} 12. Bxf4 {[%clk 0:02:34]} 12... Ne7 {[%clk
0:02:13.2]} 13. Nf3 {[%clk 0:02:20]} 13... Qd7 {[%clk 0:02:06.2]} 14. Bb5 {[%clk
0:02:15.2]} 14... Nbc6 {[%clk 0:02:02]} 15. Ne2 {[%clk 0:02:10.9]} 15... a6
{[%clk 0:01:47.2]} 16. Bd3 {[%clk 0:02:11.8]} 16... O-O-O {[%clk 0:01:48.2]} 17.
O-O-O {[%clk 0:01:58.4]} 17... Na5 {[%clk 0:01:46.9]} 18. b3 {[%clk 0:01:53.6]}
18... Kb8 {[%clk 0:01:47.6]} 19. g4 {[%clk 0:01:50.7]} 19... Nc4 {[%clk
0:01:10.4]} 20. Qc3 {[%clk 0:01:19.7]} 20... Nxa3 {[%clk 0:01:06.8]} 21. g5
{[%clk 0:01:21.1]} 21... hxg5 {[%clk 0:00:51.1]} 22. Bxg5 {[%clk 0:01:21.7]}
22... Bh6 {[%clk 0:00:52]} 23. Qb4 {[%clk 0:00:58.9]} 23... Nc4 {[%clk
0:00:40.3]} 24. Bxh6 {[%clk 0:00:26.3]} 24... Rxh6 {[%clk 0:00:37.9]} 25. Ng5
{[%clk 0:00:27.7]} 25... Ne3 {[%clk 0:00:26.3]} 26. Rdg1 {[%clk 0:00:22]} 26...
N7f5 {[%clk 0:00:24.9]} 27. Qd2 {[%clk 0:00:17.5]} 27... Rdh8 {[%clk 0:00:21.4]}
28. Ng3 {[%clk 0:00:18.1]} 28... Nxg3 {[%clk 0:00:12.3]} 29. Rxg3 {[%clk
0:00:20]} 29... Nf5 {[%clk 0:00:14.2]} 30. Bxf5 {[%clk 0:00:21.3]} 30... exf5
{[%clk 0:00:16.1]} 31. Rgh3 {[%clk 0:00:18.7]} 31... a5 {[%clk 0:00:14]} 32. Qf4
{[%clk 0:00:19.5]} 32... a4 {[%clk 0:00:15.3]} 33. Kb2 {[%clk 0:00:19.6]} 33...
axb3 {[%clk 0:00:15.1]} 34. cxb3 {[%clk 0:00:21.5]} 34... Qb5 {[%clk 0:00:09.3]}
35. R1h2 {[%clk 0:00:22.7]} 35... Bc8 {[%clk 0:00:08.9]} 36. Nxf7 {[%clk
0:00:15.7]} 36... Rxh5 {[%clk 0:00:05.1]} 37. Nxh8 {[%clk 0:00:17.2]} 37... Rxh3
{[%clk 0:00:05.5]} 38. Rxh3 {[%clk 0:00:18.6]} 38... Qe2+ {[%clk 0:00:07.2]} 39.
Ka3 {[%clk 0:00:18.9]} 39... Qa6+ {[%clk 0:00:08]} 40. Kb2 {[%clk 0:00:20.2]}
40... Qe2+ {[%clk 0:00:09.3]} 41. Kb1 {[%clk 0:00:15.2]} 41... Qd1+ {[%clk
0:00:04.3]} 42. Qc1 {[%clk 0:00:16.1]} 42... Qxd4 {[%clk 0:00:05.6]} 43. Nf7
{[%clk 0:00:10.7]} 43... f4 {[%clk 0:00:06.6]} 44. Rh8 {[%clk 0:00:11.6]} 44...
Kb7 {[%clk 0:00:04.7]} 45. Rxc8 {[%clk 0:00:11.5]} 45... Kxc8 {[%clk 0:00:05.6]}
46. Nd6+ {[%clk 0:00:13.1]} 46... Kd7 {[%clk 0:00:04.4]} 47. Qxc7+ {[%clk
0:00:15]} 47... Ke6 {[%clk 0:00:04.2]} 48. Nb5 {[%clk 0:00:16.9]} 48... Qd1+
{[%clk 0:00:03.9]} 49. Kb2 {[%clk 0:00:09.9]} 49... Qe2+ {[%clk 0:00:04.7]} 50.
Kc3 {[%clk 0:00:04.9]} 50... Qxb5 {[%clk 0:00:03.7]} 51. Qd6+ {[%clk 0:00:06.2]}
51... Kf5 {[%clk 0:00:05]} 52. e6 {[%clk 0:00:04.1]} 52... f3 {[%clk 0:00:03.4]}
53. e7 {[%clk 0:00:04.3]} 53... f2 {[%clk 0:00:04.2]} 54. Qxd5+ {[%clk
0:00:03.3]} 54... Qxd5 {[%clk 0:00:05.1]} 55. e8=Q {[%clk 0:00:05.2]} 55... Qc5+
{[%clk 0:00:04.8]} 56. Kb2 {[%clk 0:00:05.8]} 56... Kf4 {[%clk 0:00:05.1]} 57.
Qf7+ {[%clk 0:00:06.8]} 57... Ke3 {[%clk 0:00:06.4]} 58. Qe6+ {[%clk 0:00:07.2]}
58... Kd3 {[%clk 0:00:07.7]} 59. Qg6+ {[%clk 0:00:06.4]} 59... Kd2 {[%clk
0:00:08.4]} 60. Qh6+ {[%clk 0:00:04]} 60... Qe3 {[%clk 0:00:09.4]} 61. Qd6+
{[%clk 0:00:04.5]} 61... Ke1 {[%clk 0:00:09.6]} 62. Ka3 {[%clk 0:00:02.6]} 62...
Qc5+ {[%clk 0:00:09.9]} 63. b4 {[%clk 0:00:02.2]} 63... Qxd6 {[%clk 0:00:10.9]}
0-1